[Event "2nd Cambridge Open 2024"]
[Site "Cambridge"]
[Date "2024.02.21"]
[Round "4.15"]
[White "Fava, Lorenzo"]
[Black "York-Weaving, Richard"]
[Result "1-0"]
[ECO "B49"]
[WhiteElo "2084"]
[BlackElo "2343"]
[Annotator "TA"]
[PlyCount "91"]
[EventDate "2024.02.18"]
[EventType "swiss"]
[EventCountry "ENG"]
[SourceTitle "playchess.com"]
[Source "ChessBase"]
[SourceQuality "1"]
[TimeControl "5400+30"]

{[%evp 16,91,33,29,37,27,50,4,10,0,0,-9,-12,-6,0,0,10,-9,-18,-12,-6,-3,-3,-9,1,0,0,0,10,0,0,-12,-20,-6,0,0,0,0,0,0,0,0,12,14,19,28,14,13,17,10,17,10,170,144,159,144,130,147,139,132,354,353,343,321,295,273,550,561,558,557,562,535,605,591,569,566,499,473]} 1. e4 {[%emt 0:05:41]} c5 {[%emt 0:00:05]} 2. Nf3 {[%emt 0:00:04]} e6 {[%emt 0:00:04]} 3. d4 {[%emt 0:00:11]} cxd4 {[%emt 0:00:06]} 4. Nxd4 {[%emt 0:00:02]} Nc6 {[%emt 0:00:12]} 5. Nc3 {[%emt 0:00:14]} Qc7 {[%emt 0:00:07]} 6. Be3 {[%emt 0:00:55]} a6 {[%emt 0:00:09]} 7. a3 {[%emt 0:00:46]} b5 {[%emt 0:03:29]} 8. Nxc6 {[%emt 0:00:08]} Qxc6 {[%emt 0:05:17]} 9. Be2 {[%emt 0:00:14]} Bb7 {[%emt 0:00:50]} 10. O-O {[%emt 0:00:32]} Rc8 {[%emt 0:02:32]} 11. Bf3 {[%emt 0:05:43]} (11. Bf4 $14) 11... Qc7 $11 {[%emt 0:04:10] The position is equal.} 12. e5 {[%emt 0:06:31]} Ne7 {[%emt 0:08:16][%cal Bg8e7,Be7g6,Bg6h4][%mdl 32]} 13. Bxb7 {[%emt 0:03:32]} Qxb7 {[%emt 0:00:30]} 14. Qd3 {[%emt 0:05:24]} Ng6 {[%emt 0:05:03]} 15. f4 {[%emt 0:05:30]} Nh4 {[%emt 0:09:58]} 16. Qe4 {[%emt 0:12:29]} Qxe4 {[%emt 0:04:33]} 17. Nxe4 {[%emt 0:01:16]} Nf5 {[%emt 0:11:35]} 18. Bf2 {[%emt 0:01:58]} Rc4 {[%emt 0:03:16]} 19. Rae1 {[%emt 0:15:43]} h5 {[%emt 0:00:15]} (19... Rxc2 20. Rc1 Rc4 21. g4 $14) 20. c3 {[%emt 0:00:30]} Be7 {[%emt 0:04:50]} 21. g3 {[%emt 0:03:47]} Rg8 {[%emt 0:04:54]} 22. Nd2 {[%emt 0:08:29]} Rc6 {[%emt 0:03:31]} 23. Nb3 {[%emt 0:01:29]} g5 {[%emt 0:10:08]} 24. Nd4 {[%emt 0:01:49]} Nxd4 {[%emt 0:01:05]} 25. Bxd4 {[%emt 0:20:03]} Rc4 {[%emt 0:05:31]} 26. b3 {[%emt 0:00:00]} Rc8 {[%emt 0:02:37]} 27. f5 {[%emt 0:00:00]} g4 {[%emt 0:01:23]} 28. b4 {[%emt 0:00:00]} Rg5 {[%emt 0:00:54]} 29. Rf4 {[%emt 0:00:00]} Rxf5 {[%emt 0:05:07]} 30. Rxf5 {[%emt 0:00:00]} exf5 {[%emt 0:00:07][%mdl 4096] Endgame. KRB-KRB} 31. Rf1 {[%emt 0:00:00]} Bg5 {[%emt 0:01:01]} 32. Rxf5 {[%emt 0:00:00]} Bd2 {[%emt 0:00:06]} 33. Bc5 {[%emt 0:00:00]} d6 $2 {[%emt 0:01:24]} (33... Bxc3 $6 34. Rxh5 Rxc5 35. bxc5 $16) (33... Rc6 $1 $11) 34. exd6 $18 {[%emt 0:00:12] Strongly threatening Rd5.} (34. Bxd6 Rxc3 (34... Bxc3 35. Rxh5 Rc4 36. Kf1 $11) 35. Rxh5 Rxa3 $17) 34... Bxc3 {[%emt 0:00:04]} 35. Rxh5 {[%emt 0:01:10] White is more active.} Bb2 {[%emt 0:00:08][%cal Oe8d7]} 36. Rg5 {[%emt 0:00:34]} Bxa3 {[%emt 0:01:05][%cal Oa6a5] [#]} 37. Re5+ $1 {[%emt 0:00:52]} ({Of course not} 37. Rxg4 $6 a5 $11) 37... Kd7 $2 {[%emt 0:04:38] A mistake that costs the game.} (37... Kd8 $16 {was worth a try.}) 38. Re7+ {[%emt 0:00:04]} Kc6 {[%emt 0:00:00][%cal Oa6a5] [#] Threatens to win with ...a5!} 39. Ra7 $1 {[%emt 0:00:43]} ({Weaker is} 39. Rxf7 a5 $11) 39... Bb2 {[%emt 0:00:00]} 40. Rxa6+ {[%emt 0:00:15]} Kd5 $2 {[%emt 0:00:35]} (40... Kd7 41. Ra7+ Ke6 42. Re7+ Kf6) 41. d7 {[%emt 0:00:33] White is clearly winning.} Rd8 {[%emt 0:00:04]} 42. Rd6+ {[%emt 0:00:04]} Ke5 {[%emt 0:00:23]} 43. Rd2 {[%emt 0:00:01]} Bc3 {[%emt 0:01:10]} 44. Rd3 {[%emt 0:00:05][%cal Oc5e7] Be7! is the strong threat.} Ke4 {[%emt 0:00:46]} 45. Rxc3 {[%emt 0:02:04] White wants to mate with Re3+.} Rxd7 {[%emt 0:00:02]} 46. Re3+ {[%emt 0:01:06] Weighted Error Value: White=0.04 (flawless) /Black=0.25 (precise) .  Loses game:     	---       	Black=1      Mistake:       	White=1     	Black=2      OK:         	White=13    	Black=12     Best:        	White=5     	Black=4      Strong:       	White=2     	---} 1-0

[Event "2nd Cambridge Open 2024"]
[Site "Cambridge"]
[Date "2024.02.21"]
[Round "4.16"]
[White "Rushbrooke, Remy"]
[Black "Gourlay, Iain"]
[Result "1-0"]
[ECO "D01"]
[WhiteElo "2049"]
[BlackElo "2301"]
[Annotator "TA"]
[PlyCount "115"]
[EventDate "2024.02.18"]
[EventType "swiss"]
[EventCountry "ENG"]
[SourceTitle "playchess.com"]
[Source "ChessBase"]
[SourceQuality "1"]
[TimeControl "5400+30"]

{[%evp 10,115,2,0,-2,-10,8,0,6,0,0,-3,20,0,14,0,0,-13,0,-34,0,2,0,0,0,-7,10,16,7,12,30,16,27,6,25,8,60,15,23,14,38,12,14,14,19,17,15,19,15,13,14,15,23,24,70,70,164,157,175,168,174,124,121,115,96,76,78,76,79,82,79,93,77,77,71,88,94,80,78,78,85,0,42,23,183,175,302,297,295,297,330,321,477,478,29983,29984,29983,29984,29987,29988,29988,29989,29989,29990,29993,29992,29992,29993]} 1. d4 {[%emt 0:07:41]} d5 {[%emt 0:00:37]} 2. Nc3 {[%emt 0:00:10]} Nf6 {[%emt 0:00:35]} 3. Bg5 {[%emt 0:00:03]} h6 {[%emt 0:00:36]} 4. Bxf6 {[%emt 0:01:15]} exf6 {[%emt 0:00:17]} 5. e3 {[%emt 0:01:31]} c6 {[%emt 0:00:38]} 6. Bd3 {[%emt 0:00:41]} f5 {[%emt 0:01:36]} 7. h4 {[%emt 0:02:38]} h5 {[%emt 0:06:44]} 8. Nce2 {[%emt 0:10:27]} g6 {[%emt 0:12:08] The position is equal.} 9. Nf3 {[%emt 0:00:43]} Nd7 {[%emt 0:02:33][%cal Bb8d7,Bd7f6,Bf6g4][%mdl 32]} 10. c4 {[%emt 0:03:03]} Nf6 {[%emt 0:04:42]} 11. Qb3 {[%emt 0:06:56]} Qb6 {[%emt 0:34:58]} 12. Qxb6 {[%emt 0:16:34]} axb6 {[%emt 0:00:08]} 13. Nf4 {[%emt 0:00:14]} Bd6 {[%emt 0:07:02]} 14. Ne5 {[%emt 0:00:33]} Bxe5 {[%emt 0:04:29]} 15. dxe5 {[%emt 0:00:04]} Ng4 {[%emt 0:00:52]} 16. cxd5 {[%emt 0:00:30]} Nxe5 {[%emt 0:00:13]} 17. Be2 {[%emt 0:08:23]} Ra5 {[%emt 0:03:42]} 18. O-O {[%emt 0:00:59]} Bd7 {[%emt 0:01:17]} 19. a3 {[%emt 0:00:36]} O-O {[%emt 0:05:12]} 20. Rfd1 {[%emt 0:00:42]} c5 {[%emt 0:03:12]} 21. Rac1 {[%emt 0:02:03]} Rd8 {[%emt 0:02:38]} 22. d6 {[%emt 0:10:18]} Be6 {[%emt 0:02:18]} (22... Kg7 $11) 23. Nd5 {[%emt 0:00:56]} Bxd5 {[%emt 0:00:21]} 24. Rxd5 {[%emt 0:00:03]} Nd7 {[%emt 0:02:59]} 25. Bf3 {[%emt 0:05:03]} Nf6 {[%emt 0:00:13]} 26. Rd3 {[%emt 0:00:45]} Rd7 {[%emt 0:00:26]} 27. b4 {[%emt 0:03:41]} Ra6 {[%emt 0:01:39]} 28. bxc5 {[%emt 0:04:15]} bxc5 {[%emt 0:00:04]} 29. Rxc5 {[%emt 0:00:08]} Raxd6 {[%emt 0:01:28]} 30. Rxd6 {[%emt 0:01:56]} Rxd6 {[%emt 0:00:05]} 31. Bxb7 $11 {[%emt 0:00:26][%mdl 4096] Endgame. KRB-KRN} Rd3 {[%emt 0:01:30]} (31... Rd1+ $11 32. Kh2 Rd3) 32. a4 $14 {[%emt 0:00:34]} Ra3 {[%emt 0:00:40]} (32... Ng4 $14 33. Bf3 Ra3) 33. a5 $18 {[%emt 0:06:50]} Ng4 {[%emt 0:00:06] ( -> ...Ra1+)} 34. Kf1 {[%emt 0:00:08]} Ra2 {[%emt 0:00:52] [#]} 35. a6 {[%emt 0:01:03]} (35. Bd5 $1 $18 {[%cal Rd5a2]} Rxf2+ 36. Ke1) 35... Rxf2+ $16 {[%emt 0:00:12]} 36. Ke1 {[%emt 0:00:03]} Ra2 {[%emt 0:00:08] Dodges Ra5} 37. Rc3 {[%emt 0:01:11]} Kf8 {[%emt 0:00:41]} 38. Kd1 {[%emt 0:00:45]} Ke7 {[%emt 0:00:24]} 39. Kc1 {[%emt 0:00:02]} Kd6 {[%emt 0:00:34]} 40. Kb1 {[%emt 0:01:15]} Ra5 {[%emt 0:00:05]} 41. Kb2 {[%emt 0:01:02]} Ne5 {[%emt 0:00:15]} 42. Kb3 {[%emt 0:00:37]} Nd7 {[%emt 0:00:12]} 43. Kb4 {[%emt 0:00:43]} Ra1 {[%emt 0:00:25]} 44. Rc6+ {[%emt 0:00:52]} Ke5 {[%emt 0:00:32]} 45. Rc3 {[%emt 0:01:34]} ({Better is} 45. Rc2 $16) 45... Nb8 {[%emt 0:01:22]} 46. Kb5 {[%emt 0:01:04]} f6 $2 {[%emt 0:01:03] Black cannot hold the game after this.} (46... Ra2 $1 $11 {and Black stays safe.}) 47. Kb6 {[%emt 0:01:25]} Rb1+ {[%emt 0:00:41]} (47... f4 $142 48. exf4+ Kxf4) 48. Kc7 $18 {[%emt 0:00:22][%cal Oa6a7] [#] a7! would kill now.} Nxa6+ {[%emt 0:00:08]} 49. Bxa6 {[%emt 0:00:03] KRB-KR} Rb4 {[%emt 0:00:18]} 50. g3 {[%emt 0:01:08]} Rg4 {[%emt 0:00:23]} (50... Ra4 {keeps fighting.}) 51. Kd7 {[%emt 0:01:00] White threatens Bb7 and mate.} Rxg3 {[%emt 0:00:14]} (51... Rb4 $18 52. Ke7 Rb6) 52. Bb7 {[%emt 0:00:16][%cal Rc3c5] White mates.} Rxe3 {[%emt 0:01:16]} 53. Rxe3+ {[%emt 0:00:04]} Kf4 {[%emt 0:00:05]} 54. Rf3+ {[%emt 0:00:21]} Kg4 {[%emt 0:00:06]} 55. Ke6 {[%emt 0:00:06]} Kxh4 {[%emt 0:01:21]} 56. Kxf6 {[%emt 0:00:04]} g5 {[%emt 0:00:04][%cal Bg6g5,Bg5g4][%mdl 32]} 57. Rxf5 {[%emt 0:00:19]} g4 {[%emt 0:00:07]} 58. Kg6 {[%emt 0:00:05] Weighted Error Value: White=0.10 (very precise) /Black=0.26 (precise) .  Mistake:       	White=2     	Black=7      Inaccurate:     	White=3     	Black=2      OK:         	White=12    	Black=19     Best:        	White=5     	Black=1} 1-0

[Event "2nd Cambridge Open 2024"]
[Site "Cambridge"]
[Date "2024.02.21"]
[Round "4.17"]
[White "Saine, Zachary"]
[Black "Wynarczyk, Raymond"]
[Result "1-0"]
[ECO "B07"]
[WhiteElo "1978"]
[BlackElo "1703"]
[Annotator "NA"]
[PlyCount "47"]
[EventDate "2024.02.18"]
[EventType "swiss"]
[EventCountry "ENG"]
[SourceTitle "playchess.com"]
[Source "ChessBase"]
[SourceQuality "1"]
[TimeControl "5400+30"]

1. e4 {[%emt 0:01:55]} d6 {[%emt 0:00:38]} 2. d4 {[%emt 0:00:24]} Nf6 {[%emt 0:00:09]} 3. Nc3 {[%emt 0:00:17]} Nbd7 {[%emt 0:00:07]} 4. f4 {[%emt 0:00:03]} e5 {[%emt 0:00:11]} 5. Nf3 {[%emt 0:00:03]} exd4 {[%emt 0:00:27]} 6. Qxd4 {[%emt 0:00:09]} c6 {[%emt 0:00:10]} 7. Be3 {[%emt 0:13:19]} Be7 {[%emt 0:03:33]} 8. O-O-O {[%emt 0:07:56]} O-O {[%emt 0:03:55]} 9. e5 {[%emt 0:05:28]} Ng4 {[%emt 0:07:47]} 10. Bg1 {[%emt 0:08:31]} dxe5 {[%emt 0:03:55]} 11. fxe5 {[%emt 0:00:51]} Ndxe5 {[%emt 0:03:05]} 12. Nxe5 $16 {[%emt 0:08:26]} Bg5+ {[%emt 0:04:06]} 13. Kb1 {[%emt 0:00:26]} Qa5 {[%emt 0:12:57]} 14. Nxg4 {[%emt 0:05:38]} Rd8 {[%emt 0:00:41]} 15. Qe5 {[%emt 0:00:17]} Rxd1+ {[%emt 0:04:28]} 16. Nxd1 {[%emt 0:00:05]} Qd8 {[%emt 0:00:29]} 17. Bd4 {[%emt 0:02:14]} f6 {[%emt 0:00:19]} 18. Bc4+ {[%emt 0:00:05]} Kh8 {[%emt 0:00:17]} 19. Qe4 {[%emt 0:01:26]} c5 {[%emt 0:00:49]} 20. Bc3 {[%emt 0:00:44]} f5 {[%emt 0:02:02]} 21. Qe5 {[%emt 0:00:08]} Qd7 {[%emt 0:01:59]} 22. Nde3 {[%emt 0:03:22]} fxg4 {[%emt 0:00:37]} 23. Rd1 {[%emt 0:00:48]} Qe7 {[%emt 0:01:21]} 24. Rd8+ {[%emt 0:00:08]} 1-0

[Event "2nd Cambridge Open 2024"]
[Site "Cambridge"]
[Date "2024.02.21"]
[Round "4.18"]
[White "Pereslavtsev, Alexandr"]
[Black "Kovalskyi, Roman"]
[Result "1-0"]
[ECO "D32"]
[WhiteElo "1696"]
[BlackElo "2009"]
[Annotator "NA RC"]
[PlyCount "77"]
[EventDate "2024.02.18"]
[EventType "swiss"]
[EventCountry "ENG"]
[SourceTitle "playchess.com"]
[Source "ChessBase"]
[SourceQuality "1"]
[TimeControl "5400+30"]

1. d4 {[%emt 0:00:01]} d5 {[%emt 0:12:45]} 2. c4 {[%emt 0:00:21]} e6 {[%emt 0:00:06]} 3. Nc3 {[%emt 0:00:04]} c5 {[%emt 0:00:04]} 4. cxd5 {[%emt 0:00:04]} cxd4 {[%emt 0:00:06]} 5. Qa4+ {[%emt 0:00:28]} Bd7 {[%emt 0:00:04]} 6. Qxd4 {[%emt 0:00:06]} exd5 {[%emt 0:00:04]} 7. Qxd5 {[%emt 0:00:12]} Nf6 {[%emt 0:00:05]} 8. Qd1 {[%emt 0:00:06]} Bc5 {[%emt 0:00:05]} 9. e3 {[%emt 0:00:15]} O-O {[%emt 0:00:07]} 10. Nf3 {[%emt 0:00:11]} Nc6 {[%emt 0:00:08]} 11. Be2 {[%emt 0:00:14]} Qe7 {[%emt 0:00:06]} 12. O-O {[%emt 0:00:17]} Rfd8 {[%emt 0:00:07]} 13. a3 {[%emt 0:00:19]} a6 {[%emt 0:02:13]} 14. Qc2 {[%emt 0:08:51]} Rac8 {[%emt 0:01:51]} 15. Bd2 {[%emt 0:00:52]} Ne5 {[%emt 0:02:04]} 16. Rfe1 {[%emt 0:02:06]} Bd6 {[%emt 0:01:38]} 17. Rad1 {[%emt 0:02:48]} Nfg4 {[%emt 0:09:46]} 18. h3 {[%emt 0:07:27] [#]} Nxf3+ $17 {[%emt 0:04:50]} 19. Bxf3 {[%emt 0:00:27]} Qe5 {[%emt 0:00:36]} 20. a4 {[%emt 0:34:38]} Be6 {[%emt 0:43:34]} 21. b3 {[%emt 0:00:43]} Nf6 {[%emt 0:00:05]} 22. Bxb7 {[%emt 0:01:58]} Rb8 {[%emt 0:04:31]} 23. f4 {[%emt 0:13:52]} Qc5 {[%emt 0:02:58]} 24. b4 {[%emt 0:00:45]} Qxb4 {[%emt 0:00:10]} 25. Rb1 {[%emt 0:04:02]} Qc5 {[%emt 0:00:46]} 26. Kh1 {[%emt 0:03:00]} Bxh3 {[%emt 0:03:43]} 27. gxh3 {[%emt 0:03:18]} Rxb7 {[%emt 0:00:04]} 28. Rxb7 {[%emt 0:00:07]} Qc6+ {[%emt 0:00:02]} 29. Kh2 {[%emt 0:00:18]} Qxb7 {[%emt 0:00:03]} 30. e4 {[%emt 0:01:05]} Bb4 {[%emt 0:05:15]} 31. Nd5 {[%emt 0:09:10]} Nxd5 {[%emt 0:07:08]} 32. exd5 {[%emt 0:00:09]} Bxd2 {[%emt 0:00:53]} 33. Qxd2 {[%emt 0:00:05]} h6 {[%emt 0:00:27]} 34. Qd3 {[%emt 0:02:01]} g6 {[%emt 0:00:34]} 35. Qd4 {[%emt 0:00:30]} Kh7 {[%emt 0:00:27]} 36. d6 {[%emt 0:01:32]} Rd7 {[%emt 0:00:33]} 37. Re8 {[%emt 0:00:16]} f6 {[%emt 0:00:13]} 38. Qxf6 {[%emt 0:00:14]} Rg7 {[%emt 0:00:03]} 39. Re7 {[%emt 0:00:26]} 1-0

[Event "2nd Cambridge Open 2024"]
[Site "Cambridge"]
[Date "2024.02.21"]
[Round "4.19"]
[White "Prince, Alan R"]
[Black "Hagesather, Nina"]
[Result "0-1"]
[ECO "A08"]
[WhiteElo "1652"]
[BlackElo "1973"]
[Annotator "NA RC"]
[PlyCount "70"]
[EventDate "2024.02.18"]
[EventType "swiss"]
[EventCountry "ENG"]
[SourceTitle "playchess.com"]
[Source "ChessBase"]
[SourceQuality "1"]
[TimeControl "5400+30"]

1. Nf3 {[%emt 0:00:03]} Nf6 {[%emt 0:00:11]} 2. g3 {[%emt 0:00:06]} g6 {[%emt 0:00:14]} 3. Bg2 {[%emt 0:00:04]} d5 {[%emt 0:00:15]} 4. d3 {[%emt 0:00:12]} Bg7 {[%emt 0:00:20]} 5. O-O {[%emt 0:00:25]} O-O {[%emt 0:00:41]} 6. Nbd2 {[%emt 0:00:13]} c5 {[%emt 0:02:01]} 7. e4 {[%emt 0:00:11]} Nc6 {[%emt 0:02:59]} 8. a3 {[%emt 0:00:48]} dxe4 {[%emt 0:02:29]} 9. dxe4 {[%emt 0:00:38]} Qc7 {[%emt 0:04:19]} 10. c3 {[%emt 0:07:24]} Rd8 {[%emt 0:02:20]} 11. Qe2 {[%emt 0:02:31]} h6 {[%emt 0:05:31]} 12. Re1 {[%emt 0:06:31]} e5 {[%emt 0:06:01]} 13. b4 {[%emt 0:09:32]} a6 {[%emt 0:11:38]} 14. Nb3 {[%emt 0:09:20]} c4 {[%emt 0:03:12]} 15. Nbd2 {[%emt 0:02:18]} b5 {[%emt 0:00:52]} 16. a4 {[%emt 0:01:57]} Bb7 {[%emt 0:03:33]} 17. Bb2 {[%emt 0:05:31]} Rd3 {[%emt 0:06:23]} 18. axb5 {[%emt 0:01:16]} axb5 {[%emt 0:00:08]} 19. Rxa8+ {[%emt 0:00:09]} Bxa8 {[%emt 0:00:02]} 20. Ra1 {[%emt 0:00:23]} Qd8 {[%emt 0:01:30]} 21. Bf1 {[%emt 0:04:40]} g5 {[%emt 0:06:22]} 22. Qe1 {[%emt 0:04:41]} Rd7 {[%emt 0:03:09]} 23. Bc1 {[%emt 0:05:26]} Bb7 {[%emt 0:02:55]} 24. h3 {[%emt 0:03:06]} g4 {[%emt 0:03:54]} 25. Nh4 {[%emt 0:10:27]} Ne7 {[%emt 0:07:26]} 26. hxg4 {[%emt 0:05:01]} Nxg4 {[%emt 0:05:40]} 27. f3 {[%emt 0:00:14]} Qb6+ {[%emt 0:00:47]} 28. Kh1 {[%emt 0:02:08]} Nf2+ {[%emt 0:02:05]} 29. Kg2 {[%emt 0:00:09]} Nd3 {[%emt 0:00:08]} 30. Qe2 {[%emt 0:01:25]} Qd6 {[%emt 0:02:57]} 31. Ba3 {[%emt 0:04:00]} Bf6 {[%emt 0:04:58]} 32. Nf5 {[%emt 0:03:55]} Nxf5 {[%emt 0:00:06]} 33. exf5 {[%emt 0:00:05]} Nf4+ {[%emt 0:00:24]} 34. gxf4 {[%emt 0:00:26]} Qxd2 {[%emt 0:00:04]} 35. Ra2 {[%emt 0:05:40]} Qxf4 {[%emt 0:00:54]} 0-1

[Event "2nd Cambridge Open 2024"]
[Site "Cambridge"]
[Date "2024.02.21"]
[Round "4.20"]
[White "Vardanyan, Aras"]
[Black "Redman, David J"]
[Result "1-0"]
[ECO "A16"]
[WhiteElo "2284"]
[BlackElo "1971"]
[Annotator "TA"]
[PlyCount "63"]
[EventDate "2024.02.18"]
[EventType "swiss"]
[EventCountry "ENG"]
[SourceTitle "playchess.com"]
[Source "ChessBase"]
[SourceQuality "1"]
[TimeControl "5400+30"]

{[%evp 9,62,2,6,-14,8,2,18,19,51,47,41,42,56,40,47,37,94,64,77,52,41,38,54,39,48,36,61,27,76,23,14,7,18,17,62,75,254,237,350,342,655,655,789,768,1055,923,29984,29985,29985,29986,29990,29991,29991,29992,29999]} 1. c4 {[%emt 0:00:03]} Nf6 {[%emt 0:00:04]} 2. g3 {[%emt 0:00:06]} g6 {[%emt 0:00:05]} 3. Bg2 {[%emt 0:00:05]} Bg7 {[%emt 0:00:04]} 4. Nc3 {[%emt 0:00:05]} O-O {[%emt 0:00:44]} 5. h3 {[%emt 0:00:30]} c5 {[%emt 0:03:43]} 6. e3 {[%emt 0:01:19]} d6 {[%emt 0:02:47]} 7. Nge2 {[%emt 0:00:15]} a6 {[%emt 0:01:20]} 8. d4 {[%emt 0:02:05] Die Stellung ist ausgeglichen.} Nbd7 {[%emt 0:02:26]} 9. O-O {[%emt 0:00:39]} Rb8 {[%emt 0:07:02]} 10. a4 {[%emt 0:00:54]} Qc7 {[%emt 0:01:28]} 11. b3 {[%emt 0:01:56]} cxd4 {[%emt 0:07:51]} 12. exd4 {[%emt 0:01:03][%cal Be3d4,Bd4c5,Bc5d6][%mdl 32]} e6 {[%emt 0:16:15]} (12... b6 $14) 13. Bf4 {[%emt 0:02:30][%cal Oc4c5]} b6 {[%emt 0:03:35]} 14. c5 {[%emt 0:03:47]} bxc5 {[%emt 0:02:22]} 15. dxc5 {[%emt 0:00:30]} e5 {[%emt 0:00:11]} 16. cxd6 {[%emt 0:00:47]} Qb6 {[%emt 0:00:39]} 17. Bg5 {[%emt 0:06:54][%cal Bf4g5,Bg5e7,Be7f8][%mdl 32]} Qxb3 {[%emt 0:05:14]} 18. Qd2 {[%emt 0:06:14]} Qe6 {[%emt 0:00:07]} (18... Qb2 $11) 19. Nd5 {[%emt 0:09:16]} (19. Rab1 $16) 19... Nxd5 $11 {[%emt 0:17:24]} 20. Bxd5 {[%emt 0:04:17]} Qxh3 {[%emt 0:00:06][%cal Oe5e4]} 21. Be7 $36 {[%emt 0:00:09][%mdl 2048] Weiss drückt.} e4 {[%emt 0:15:03][%cal Od7e5] [#] Droht stark ...Ne5!} 22. Nf4 {[%emt 0:06:06] Sehr scharf! Aktives Gegenspiel!} Qh6 {[%emt 0:02:35] Danach kann Schwarz die Partie nicht mehr halten.} (22... Qf5 $16 {war nötig.}) 23. Bxf8 $18 {[%emt 0:12:43]} Ne5 {[%emt 0:00:15]} (23... Bxf8 $142 24. Rab1 (24. Bxe4 Nf6 $18) 24... Rxb1 25. Rxb1 g5) 24. Bxe4 $1 {[%emt 0:00:06] Zielt auf Bxg7 ab.} (24. Bxg7 $2 {wird mattgesetzt.} Nf3+ 25. Kg2 Qh2#) 24... Ng4 $2 {[%emt 0:00:15] [#]} (24... Bxf8 25. Rab1 Rxb1 26. Rxb1 Bg4) 25. Rfb1 $1 {[%emt 0:00:31]} ({Aber nicht} 25. f3 $2 Bd4+ $19 (25... Kxf8 $2 {geht unter.} 26. Rfb1 $18) (25... Kxf8 $2 26. Rfb1 $18)) 25... Qh2+ {[%emt 0:03:24]} 26. Kf1 {[%emt 0:00:02]} Bc3 {[%emt 0:03:07]} 27. Qc2 {[%emt 0:07:13]} (27. Qxc3 $2 Qxf2#) 27... a5 {[%emt 0:00:04]} 28. Rxb8 {[%emt 0:03:34] Weiß setzt Matt.} Ba6+ {[%emt 0:02:36]} 29. Nd3 {[%emt 0:02:36]} Bxd3+ {[%emt 0:02:30]} 30. Bxd3 {[%emt 0:00:10][%cal Rf8h6]} Ne3+ {[%emt 0:00:58]} 31. Ke2 {[%emt 0:00:52][%cal Rf8h6]} Nxc2 {[%emt 0:01:01]} 32. Bh6# {[%emt 0:00:08] Gewichteter Fehlerwert: Weiß=0.07 (makellos) /Schwarz=0.68.  Verlustzug:     	---       	Schwarz=1     Fehler:       	Weiß=1     	Schwarz=4     Ungenau:       	Weiß=2     	Schwarz=2     OK:         	Weiß=5     	Schwarz=7     Bester:       	Weiß=3     	Schwarz=1     Stark:        	Weiß=2     	---} 1-0